[Event "Slovakian ECo-C Extraliga 2024-25"]
[Site "Slovakia"]
[Date "2024.11.23"]
[Round "1.1"]
[White "Navara, David"]
[Black "Karacsonyi, Gellert"]
[Result "1-0"]
[ECO "E20"]
[WhiteElo "2674"]
[BlackElo "2390"]
[Annotator "TA"]
[PlyCount "55"]
[EventDate "2024.09.12"]
[EventType "team-tourn"]
[EventCountry "SVK"]
[SourceTitle "playchess.com"]
[Source "ChessBase"]
[SourceQuality "1"]
[TimeControl "5400+30"]

{[%evp 10,55,0,8,9,5,17,32,20,3,18,20,18,0,54,48,125,113,125,118,111,108,204,203,292,275,298,298,391,382,416,386,406,191,789,774,760,748,931,933,981,933,929,917,1098,1093,29986,29987]} 1. d4 {[%emt 0:00:01]} Nf6 {[%emt 0:00:11]} 2. c4 {[%emt 0:00:04]} e6 {[%emt 0:00:09]} 3. Nc3 {[%emt 0:00:04]} Bb4 {[%emt 0:00:12]} 4. f3 {[%emt 0:00:03]} d5 {[%emt 0:04:11]} 5. a3 {[%emt 0:00:07]} Be7 {[%emt 0:00:14]} 6. e4 {[%emt 0:00:07][%cal Be2e4,Be4e5][%mdl 32]} dxc4 {[%emt 0:02:30]} 7. Be3 {[%emt 0:05:40]} O-O {[%emt 0:10:30][%cal Ob7b5]} 8. Bxc4 {[%emt 0:00:24]} b6 {[%emt 0:00:28] White is slightly better.} 9. e5 {[%emt 0:06:00]} Nd5 {[%emt 0:02:27]} 10. Nxd5 {[%emt 0:00:37]} exd5 {[%emt 0:00:06]} 11. Ba2 {[%emt 0:00:22]} Bf5 {[%emt 0:04:14]} (11... c5 $11) 12. Ne2 $14 {[%emt 0:01:33]} Kh8 {[%emt 0:03:59] Black is on the road to losing.} (12... c5 $14) 13. O-O $16 {[%emt 0:04:43]} f6 {[%emt 0:06:22]} 14. f4 {[%emt 0:02:31]} Bg4 {[%emt 0:04:54]} 15. h3 {[%emt 0:02:41]} Bxe2 {[%emt 0:03:51]} (15... Bc8 $16 16. Rc1 f5) 16. Qxe2 $18 {[%emt 0:00:07]} f5 {[%emt 0:00:04]} (16... c5 {might work better.} 17. dxc5 bxc5) 17. Rac1 {[%emt 0:02:39]} c6 {[%emt 0:04:56]} 18. g4 {[%emt 0:01:05]} g6 {[%emt 0:02:27][%cal Bg7g6,Bg6f5][%mdl 32]} 19. Kh2 {[%emt 0:04:31]} a5 {[%emt 0:05:49]} 20. Bb1 {[%emt 0:04:03]} Qe8 {[%emt 0:00:29] [#]} 21. h4 {[%emt 0:05:17]} h5 $2 {[%emt 0:07:08]} (21... c5 22. h5 (22. dxc5 bxc5 23. gxf5 gxf5 $18) 22... cxd4) 22. gxf5 {[%emt 0:00:51]} gxf5 {[%emt 0:00:07]} 23. Rg1 {[%emt 0:01:49][%cal Bf1g1,Bg1g2,Bg2g6][%mdl 32]} Ra7 {[%emt 0:01:10]} 24. Rg2 {[%emt 0:03:39]} Bxh4 {[%emt 0:07:46]} 25. Rcg1 {[%emt 0:00:56] [#] Black must now prevent Rg6.} Rh7 {[%emt 0:21:22]} 26. Rg6 {[%emt 0:00:42] Threatens to win with Qg2.} Nd7 {[%emt 0:02:09]} 27. Qg2 {[%emt 0:00:41]} (27. Rxc6 Nxe5 28. dxe5 Qxc6 $14) 27... Bf6 {[%emt 0:00:58]} 28. Bxf5 {[%emt 0:00:53] Weighted Error Value: White=0.20 (precise) /Black=0.64.  Mistake:       	White=1     	Black=5      Inaccurate:     	---       	Black=1      OK:         	White=7     	Black=3      Best:        	White=1     	---} 1-0

[Event "Slovakian ECo-C Extraliga 2024-25"]
[Site "Slovakia"]
[Date "2024.11.23"]
[Round "1.1"]
[White "Aczel, Gergely"]
[Black "Neugebauer, Martin"]
[Result "0-1"]
[ECO "E46"]
[WhiteElo "2488"]
[BlackElo "2525"]
[Annotator "TA"]
[PlyCount "85"]
[EventDate "2024.09.12"]
[EventType "team-tourn"]
[EventCountry "SVK"]
[SourceTitle "playchess.com"]
[Source "ChessBase"]
[SourceQuality "1"]
[TimeControl "5400+30"]

{[%evp 18,85,0,0,0,0,0,0,18,24,64,70,74,8,0,10,0,19,0,5,2,0,0,0,0,0,0,0,18,7,9,-285,-289,-274,-231,-329,-330,-328,-341,-334,-341,-334,-335,-352,-355,-377,-366,-394,-357,-389,-404,-403,-401,-401,-408,-408,-408,-420,-418,-420,-420,-420,-420,-420,-413,-436,-422,-806,-806,-698]} 1. d4 {[%emt 0:00:03]} Nf6 {[%emt 0:00:15]} 2. c4 {[%emt 0:00:05]} e6 {[%emt 0:00:21]} 3. Nc3 {[%emt 0:00:06]} Bb4 {[%emt 0:00:18]} 4. e3 {[%emt 0:00:09]} O-O {[%emt 0:00:31]} 5. Bd2 {[%emt 0:00:05]} d5 {[%emt 0:00:45]} 6. Nf3 {[%emt 0:00:06]} b6 {[%emt 0:00:24]} 7. cxd5 {[%emt 0:00:06]} exd5 {[%emt 0:00:07]} 8. Rc1 {[%emt 0:00:06] E51: Nimzo-Indian: Rubinstein: 4...0-0 5 Nf3 d5.} c5 {[%emt 0:00:34]} 9. dxc5 {[%emt 0:00:13]} bxc5 {[%emt 0:00:08]} 10. Na4 {[%emt 0:00:07]} (10. a3 Ba5 11. Bb5 {½-½ Aczel,G (2477)-Neugebauer,M (2517) SVK-chT 2223 2022 (11.4)}) 10... Bxd2+ {[%emt 0:07:39]} 11. Nxd2 {[%emt 0:00:06]} c4 {[%emt 0:10:35]} 12. Be2 $146 {[%emt 0:00:06]} ({Predecessor:} 12. b3 Bb7 13. Be2 Bc6 14. bxc4 d4 15. Bf3 dxe3 16. fxe3 Qe8 17. Bxc6 Qxe3+ 18. Qe2 Qxe2+ 19. Kxe2 Nxc6 {0-1 Krasteva,B (2305)-Petrosyan,M (2625) Veliko Gradiste Silver Lake op-A 2021 (4)}) 12... Bd7 {[%emt 0:06:13]} 13. O-O {[%emt 0:03:04]} Na6 {[%emt 0:01:17]} 14. Nc3 $1 {[%emt 0:03:55]} Rc8 {[%emt 0:11:10]} 15. e4 {[%emt 0:40:38]} (15. b3 $16) 15... d4 $11 {[%emt 0:15:16]} 16. Nd5 {[%emt 0:00:54]} d3 {[%emt 0:02:31]} 17. Bf3 {[%emt 0:00:08]} Nxd5 {[%emt 0:11:00]} 18. exd5 {[%emt 0:00:06]} Qh4 $1 {[%emt 0:00:13]} 19. b3 {[%emt 0:22:18]} cxb3 {[%emt 0:03:09]} 20. Qxb3 {[%emt 0:13:59]} Nc5 {[%emt 0:01:02]} 21. Qb2 {[%emt 0:03:28]} Qh6 {[%emt 0:07:47]} 22. Nc4 {[%emt 0:08:48]} Rfe8 {[%emt 0:11:31]} 23. Qd4 {[%emt 0:00:30]} Qa6 {[%emt 0:03:49]} 24. Ne5 $2 {[%emt 0:02:19][%mdl 8192]} (24. Ne3 $11 {and White has nothing to worry.} Qf6 25. Qxf6 gxf6 26. Rc4) 24... d2 $1 $19 {[%emt 0:00:49]} 25. Rcd1 {[%emt 0:00:48]} Qf6 {[%emt 0:00:15]} ({Inferior is} 25... Qxa2 26. Nxd7 (26. Rxd2 Nb3 $11) 26... Nxd7 27. Qxd2 Qxd2 28. Rxd2 $16) 26. Nc6 {[%emt 0:00:44]} (26. Qxc5 $142 Rxc5 27. Nxd7 Qxf3 28. gxf3 Rxd5 29. Nc5 Rg5+ (29... Rxc5 30. Rxd2 g6 31. Rb1 $15) 30. Kh1 Rxc5 31. Rxd2) 26... Rxc6 $1 $19 {[%emt 0:00:06]} 27. Qxf6 {[%emt 0:00:18]} Rxf6 {[%emt 0:00:05]} 28. Rxd2 {[%emt 0:00:02]} Rb6 {[%emt 0:02:23]} 29. Rc1 {[%emt 0:00:10]} Ne4 {[%emt 0:01:39]} 30. Bxe4 {[%emt 0:00:05]} Rxe4 {[%emt 0:00:05]} 31. f3 {[%emt 0:00:03]} Ra4 {[%emt 0:00:29]} 32. Rc7 {[%emt 0:01:21]} Rd6 {[%emt 0:00:10]} 33. Rb2 {[%emt 0:00:02]} Kf8 {[%emt 0:00:13]} ({Weaker is} 33... Rxd5 34. Rb8+) 34. Rbb7 {[%emt 0:00:58]} Ke7 {[%emt 0:00:20]} 35. Rxa7 {[%emt 0:00:01]} Rxa7 {[%emt 0:00:05]} 36. Rxa7 {[%emt 0:00:06]} Rxd5 {[%emt 0:00:02]} 37. Kf2 {[%emt 0:00:30]} Rd4 {[%emt 0:00:08]} 38. Ra3 {[%emt 0:01:08]} Ra4 {[%emt 0:00:08]} 39. Re3+ {[%emt 0:00:06]} Be6 {[%emt 0:00:03]} 40. a3 {[%emt 0:00:04]} Kd6 {[%emt 0:00:20]} 41. g4 {[%emt 0:00:13]} h5 {[%emt 0:00:53]} 42. h3 {[%emt 0:00:11]} (42. gxh5 $142 Rh4 43. Kg1) 42... h4 $19 {[%emt 0:00:00]} 43. Rd3+ {[%emt 0:00:07]} 0-1

[Event "Slovakian ECo-C Extraliga 2024-25"]
[Site "Slovakia"]
[Date "2024.11.23"]
[Round "1.1"]
[White "Sahidi, Samir"]
[Black "Krejci, Jan"]
[Result "1/2-1/2"]
[ECO "B41"]
[WhiteElo "2485"]
[BlackElo "2526"]
[Annotator "TA"]
[PlyCount "36"]
[EventDate "2024.09.12"]
[EventType "team-tourn"]
[EventCountry "SVK"]
[SourceTitle "playchess.com"]
[Source "ChessBase"]
[SourceQuality "1"]
[TimeControl "5400+30"]

{[%evp 13,36,21,41,50,57,62,63,55,57,54,50,46,67,37,63,46,55,0,37,-54,0,0,40,-27,0]} 1. e4 {[%emt 0:00:06]} c5 {[%emt 0:00:04]} 2. Nf3 {[%emt 0:00:08][%cal Bg1f3,Bf3d4,Bd4b3][%mdl 32]} e6 {[%emt 0:00:04]} 3. d4 {[%emt 0:01:14]} cxd4 {[%emt 0:00:05]} 4. Nxd4 {[%emt 0:00:07]} a6 {[%emt 0:00:03]} 5. c4 {[%emt 0:01:16]} Nf6 {[%emt 0:02:12]} 6. Nc3 {[%emt 0:00:16]} Qc7 {[%emt 0:03:25]} 7. Bd3 {[%emt 0:03:51]} Bc5 {[%emt 0:09:39]} 8. Nb3 {[%emt 0:01:51] Nxc5 would now be deadly.} Be7 {[%emt 0:02:11]} 9. Be3 {[%emt 0:01:30]} d6 {[%emt 0:00:19]} 10. O-O {[%emt 0:02:07] White is more active. White is slightly better.} Nbd7 {[%emt 0:00:08]} 11. f4 {[%emt 0:04:21]} b6 {[%emt 0:02:12]} 12. Qf3 {[%emt 0:02:07]} Bb7 {[%emt 0:01:03]} 13. Rae1 {[%emt 0:06:25]} h5 {[%emt 0:03:24][%cal Bh7h5,Bh5h4][%mdl 32]} 14. h3 {[%emt 0:10:45]} h4 {[%emt 0:07:36]} 15. Bf2 {[%emt 0:10:38]} (15. Nd4 $14) 15... Nh5 {[%emt 0:03:26]} 16. Qg4 {[%emt 0:02:19]} (16. Rc1 $14) 16... Ndf6 {[%emt 0:14:58]} ({Better is} 16... O-O-O $15) 17. Qf3 $1 $14 {[%emt 0:00:18]} ({Don't play} 17. Qxh4 Nxe4 18. Qg4 Nef6 $17) 17... Nd7 {[%emt 0:00:10]} 18. Qg4 {[%emt 0:06:56]} ({White should try} 18. Be2 $14) 18... Ndf6 {[%emt 0:00:05] Weighted Error Value: White=0.27 (precise) /Black=0.17 (very precise) .  Mistake:       	White=3     	Black=1      Inaccurate:     	White=1     	Black=3      OK:         	White=2     	Black=3      Best:        	---       	Black=1      Strong:       	White=1     	---} 1/2-1/2

[Event "Slovakian ECo-C Extraliga 2024-25"]
[Site "Slovakia"]
[Date "2024.11.23"]
[Round "1.1"]
[White "Haring, Filip"]
[Black "Mihok, Oliver"]
[Result "0-1"]
[ECO "B32"]
[WhiteElo "2483"]
[BlackElo "2522"]
[Annotator "TA"]
[PlyCount "130"]
[EventDate "2024.09.12"]
[EventType "team-tourn"]
[EventCountry "SVK"]
[SourceTitle "playchess.com"]
[Source "ChessBase"]
[SourceQuality "1"]
[TimeControl "5400+30"]

{[%evp 17,130,45,42,30,43,26,34,12,15,2,0,0,14,-8,14,-183,-193,-178,-160,-173,14,0,0,0,45,50,47,43,23,30,30,0,0,-63,31,2,20,-82,0,-110,-9,-5,0,0,0,0,0,-100,-95,-96,-104,-89,-96,-81,-14,-36,-35,-25,-22,-19,-14,-76,-75,-91,-96,-90,-84,-130,-118,-120,-131,-132,-120,-120,-125,-239,-129,-122,-117,-147,-133,-145,-138,-133,-138,-143,-141,-143,-99,-144,-114,-117,-107,-289,-335,-480,-480,-862,-854,-836,-786,-862,-1094,-1174,-1192,-1307,-1243,-29966,-29958,-29982,-29983,-29993,-29983,-29994,-29995]} 1. e4 {[%emt 0:00:07]} c5 {[%emt 0:00:05]} 2. Nf3 {[%emt 0:00:09]} Nc6 {[%emt 0:00:08]} 3. d4 {[%emt 0:00:39]} cxd4 {[%emt 0:00:05]} 4. Nxd4 {[%emt 0:00:06]} Qb6 {[%emt 0:00:05]} 5. Nb3 {[%emt 0:00:20]} Nf6 {[%emt 0:00:05]} 6. Nc3 {[%emt 0:00:32]} e6 {[%emt 0:00:16]} 7. Be3 {[%emt 0:02:04]} Qc7 {[%emt 0:00:41]} 8. a3 {[%emt 0:03:16]} a6 {[%emt 0:00:40]} 9. f4 {[%emt 0:00:50]} d6 {[%emt 0:00:29]} 10. g4 {[%emt 0:00:58]} h6 {[%emt 0:00:20][%cal Od6d5]} 11. Bg2 {[%emt 0:09:42]} b5 {[%emt 0:02:19]} 12. h4 {[%emt 0:08:56] White is slightly better.} b4 $1 {[%emt 0:03:50]} 13. axb4 {[%emt 0:00:32]} Nxb4 {[%emt 0:00:06][%cal Of6g4]} 14. Bf3 {[%emt 0:28:28]} Rb8 {[%emt 0:06:38]} 15. g5 {[%emt 0:08:20]} hxg5 {[%emt 0:05:09]} 16. hxg5 {[%emt 0:00:07]} (16. fxg5 $11 Nd7 17. Nd4) 16... Rxh1+ $19 {[%emt 0:00:14]} 17. Bxh1 {[%emt 0:00:01] [#]} Ng4 {[%emt 0:04:02][%mdl 512]} 18. Bg1 {[%emt 0:00:11][%cal Oe1d2] [#]} d5 $1 {[%emt 0:00:13][%mdl 512]} 19. Bf3 {[%emt 0:25:34]} (19. e5 Nxe5) 19... Qxf4 {[%emt 0:07:37]} 20. Bxg4 {[%emt 0:00:04][%cal Re4d5]} Nxc2+ {[%emt 0:02:05]} 21. Qxc2 {[%emt 0:00:06]} Qxg4 {[%emt 0:00:03]} 22. Ba7 {[%emt 0:06:14]} Qh4+ {[%emt 0:03:53]} 23. Bf2 {[%emt 0:01:08]} Qh1+ {[%emt 0:05:26]} 24. Ke2 {[%emt 0:00:05]} Qh5+ {[%emt 0:00:13]} 25. Kf1 {[%emt 0:00:40]} (25. Kd2 $11) 25... Qxg5 {[%emt 0:05:33]} (25... Be7 $1 $15) 26. Nd4 {[%emt 0:01:26]} Qh5 {[%emt 0:03:57] ...e5 is the strong threat.} 27. Re1 {[%emt 0:02:39]} (27. Bg3 $11 Rb4 28. Ra4) 27... Qh3+ {[%emt 0:04:44]} (27... e5 $1 $17 {( -> ...Bh3+)} 28. Nf5 (28. exd5 $2 {perishes.} Bh3+ 29. Kg1 Qg5+ $19) 28... d4) 28. Ke2 {[%emt 0:00:44] [#]} (28. Kg1 $1 $11 {was the only way to keep the balance.} Bd6 29. e5) 28... dxe4 {[%emt 0:01:48]} (28... e5 $1 $17 {[%cal Re5d4]} 29. Nxd5 exd4 30. Bxd4 Bd7) 29. Nxe4 {[%emt 0:00:29]} Bd7 {[%emt 0:00:43]} 30. Kd1 {[%emt 0:00:29]} Bb4 {[%emt 0:02:39]} 31. Nc3 {[%emt 0:00:24]} Rc8 {[%emt 0:02:17][%cal Rb4c3]} 32. Be3 {[%emt 0:00:35]} (32. Re3 $11 Qh1+ 33. Be1) 32... e5 $17 {[%emt 0:02:05] Some like it hot} 33. Qe4 {[%emt 0:00:23]} Qg4+ {[%emt 0:02:06]} 34. Qxg4 {[%emt 0:00:05]} Bxg4+ {[%emt 0:00:03] This pair of bishops is nice.} 35. Nde2 {[%emt 0:00:04]} Bxc3 {[%emt 0:02:30]} (35... f5 $17 {[%cal Oe8f7]} 36. Kd2 Kf7) 36. bxc3 $11 {[%emt 0:00:01]} Rxc3 {[%emt 0:00:28]} (36... f5 $5) 37. Kd2 {[%emt 0:00:06]} Rc6 {[%emt 0:02:50]} 38. Nc3 {[%emt 0:00:44]} Rd6+ {[%emt 0:04:38]} 39. Kc2 {[%emt 0:00:32]} (39. Kc1 $11 {remains equal.}) 39... f6 {[%emt 0:00:32]} 40. Na4 {[%emt 0:01:44]} Kf7 {[%emt 0:03:14]} 41. Nc5 {[%emt 0:00:13]} g5 {[%emt 0:04:02]} 42. Rg1 {[%emt 0:00:00]} ({White should try} 42. Nb7 Rd5 43. Ra1) 42... Bf3 $17 {[%emt 0:00:00]} 43. Ra1 {[%emt 0:00:00]} Be2 {[%emt 0:00:00]} 44. Re1 {[%emt 0:00:00]} Bb5 45. Rg1 {[%emt 0:00:00]} Rd5 {[%emt 0:00:00]} 46. Ra1 {[%emt 0:00:00] [#]} (46. Kc3 $17) 46... Rd8 {[%emt 0:00:00]} (46... f5 $1 $19 {Strongly threatening ...f4.} 47. Nxa6 Bd3+ (47... Bxa6 $2 48. Rxa6 f4 49. Bd2 $17) 48. Kc3 Bxa6 49. Rxa6 f4) 47. Rg1 {[%emt 0:00:00]} Kg6 {[%emt 0:00:00]} 48. Rg2 {[%emt 0:00:00]} Rd6 {[%emt 0:00:00]} 49. Bd2 {[%emt 0:00:00]} Kf5 {[%emt 0:00:00]} 50. Be3 {[%emt 0:00:00]} Rd5 {[%emt 0:00:00]} 51. Rf2+ {[%emt 0:00:12]} Kg6 {[%emt 0:00:00]} 52. Rg2 {[%emt 0:01:53]} a5 {[%emt 0:02:38]} 53. Rg1 {[%emt 0:01:03]} a4 {[%emt 0:02:38]} 54. Rb1 {[%emt 0:00:55]} Bd7 {[%emt 0:02:22]} 55. Nxd7 {[%emt 0:03:30]} (55. Rb6 $17 {was necessary.}) 55... Rxd7 {[%emt 0:00:04][%mdl 4096] Endgame. KRB-KR} 56. Rb4 {[%emt 0:00:18]} (56. Rb5 {was called for.}) 56... f5 $19 {[%emt 0:01:09] ...f4 would now be deadly.} 57. Rxa4 {[%emt 0:00:05]} (57. Rb6+ $142 Kh5 58. Rb5) 57... f4 {[%emt 0:00:13]} 58. Bd2 {[%emt 0:00:00]} Kf5 {[%emt 0:03:02]} 59. Kd1 {[%emt 0:00:37]} g4 {[%emt 0:01:16]} 60. Ke2 {[%emt 0:00:49]} Rh7 {[%emt 0:01:19] And now ...Rh2+ would win.} 61. Bc3 {[%emt 0:00:30]} Rh2+ {[%emt 0:00:49]} 62. Kf1 {[%emt 0:00:27]} g3 {[%emt 0:01:01] Black mates.} 63. Ra5 {[%emt 0:01:21]} f3 {[%emt 0:00:27][%cal Rh2h1]} 64. Bd4 {[%emt 0:00:29]} Rh1+ {[%emt 0:00:21]} 65. Bg1 {[%emt 0:00:04]} f2 {[%emt 0:00:06] Weighted Error Value: White=0.54/Black=0.21 (precise) .  Loses game:     	White=2     	---        Missed win:     	---       	Black=1      Mistake:       	White=9     	Black=5      Inaccurate:     	White=3     	Black=2      OK:         	White=13    	Black=13     Best:        	White=4     	Black=5      Strong:       	---       	Black=1      Brilliant:      	---       	Black=1} 0-1

[Event "Slovakian ECo-C Extraliga 2024-25"]
[Site "Slovakia"]
[Date "2024.11.23"]
[Round "1.1"]
[White "Cernousek, Lukas"]
[Black "Pechac, Jergus"]
[Result "0-1"]
[ECO "B22"]
[WhiteElo "2445"]
[BlackElo "2598"]
[Annotator "TA"]
[PlyCount "116"]
[EventDate "2024.09.12"]
[EventType "team-tourn"]
[EventCountry "SVK"]
[SourceTitle "playchess.com"]
[Source "ChessBase"]
[SourceQuality "1"]
[TimeControl "5400+30"]

{[%evp 51,116,0,0,1,6,0,18,-10,-6,-87,-93,-89,-89,-92,-83,-94,-93,-87,-87,-88,-88,-88,-89,-94,-92,-109,-109,-112,-108,-175,-129,-129,-128,-549,-535,-1237,-1281,-1356,-1326,-1706,-1753,-2302,-1422,-1072,-2506,-29967,-5859,-4725,-4335,-2024,0,-1118,0,-29969,-29970,-29970,-29971,-29971,-29972,-29972,-29969,-76,0,-29979,-29980,-29980,-29981]} 1. e4 {[%emt 0:00:03]} c5 {[%emt 0:02:20]} 2. c3 {[%emt 0:00:12]} d5 {[%emt 0:02:20]} 3. exd5 {[%emt 0:00:08]} Qxd5 {[%emt 0:00:03]} 4. d4 {[%emt 0:00:15]} Nc6 {[%emt 0:00:45]} 5. Nf3 {[%emt 0:00:24]} Nf6 {[%emt 0:05:36]} 6. Be2 {[%emt 0:10:41]} cxd4 {[%emt 0:03:36]} 7. cxd4 {[%emt 0:00:11]} e6 {[%emt 0:00:07]} 8. Nc3 {[%emt 0:02:26]} Qd8 {[%emt 0:00:17]} 9. O-O {[%emt 0:00:41]} Be7 {[%emt 0:00:05]} 10. Be3 {[%emt 0:28:45]} O-O {[%emt 0:00:18]} 11. Ne5 {[%emt 0:03:05]} Bd7 {[%emt 0:15:00]} 12. Bf3 {[%emt 0:00:45] B22: Sicilian: 2 c3.} Be8 $5 {[%emt 0:00:19][%mdl 4] A promising side line.} 13. Rc1 {[%emt 0:10:57]} Rc8 {[%emt 0:09:46]} 14. Qd2 {[%emt 0:00:06]} Qa5 {[%emt 0:05:07]} 15. Rfd1 $146 {[%emt 0:12:37]} ({Predecessor:} 15. Bf4 Rd8 16. Nxc6 Bxc6 17. Bxc6 bxc6 18. Be5 Qxe5 19. dxe5 Rxd2 20. exf6 Bxf6 21. b3 {0-1 Sveshnikov,E (2483)-Martinez Alcantara,J (2601) Riga Tal Memorial blitz 2019 (3)}) 15... Rd8 {[%emt 0:04:23]} 16. Qe2 {[%emt 0:12:24]} h6 {[%emt 0:18:18]} 17. a3 {[%emt 0:03:28]} Nxe5 {[%emt 0:00:37]} 18. dxe5 {[%emt 0:00:09]} Rxd1+ {[%emt 0:00:48]} 19. Rxd1 {[%emt 0:00:40]} Qxe5 {[%emt 0:00:49]} 20. Bxb7 {[%emt 0:01:23]} a5 {[%emt 0:05:14]} 21. Bd4 {[%emt 0:07:21]} Qc7 {[%emt 0:00:10]} 22. Bf3 {[%emt 0:00:27]} Bc6 {[%emt 0:00:33]} 23. Be5 {[%emt 0:02:29]} Bxf3 {[%emt 0:06:54]} 24. Bxc7 {[%emt 0:00:02]} Bxe2 {[%emt 0:00:08]} 25. Nxe2 {[%emt 0:00:03]} a4 {[%emt 0:00:15]} 26. Nc3 {[%emt 0:02:27]} Rc8 {[%emt 0:00:06]} 27. Ba5 {[%emt 0:00:16]} Rc4 {[%emt 0:04:28]} 28. Kf1 {[%emt 0:00:02]} Ng4 {[%emt 0:00:20]} 29. h3 {[%emt 0:00:26]} Ne5 {[%emt 0:00:02]} 30. Ke1 {[%emt 0:02:05]} (30. Ne2 $11 {remains equal.}) 30... Nc6 $17 {[%emt 0:00:21]} 31. Rd7 {[%emt 0:00:26]} Bc5 {[%emt 0:08:21]} 32. Bc7 {[%emt 0:00:23]} Bxa3 $1 {[%emt 0:00:05]} 33. Nxa4 {[%emt 0:00:40]} Rxa4 {[%emt 0:00:15]} 34. bxa3 {[%emt 0:00:08]} Rxa3 {[%emt 0:00:34]} 35. Bf4 {[%emt 0:00:35]} Nb4 {[%emt 0:01:47]} 36. Ke2 {[%emt 0:00:41]} Nd5 {[%emt 0:00:24]} 37. Bd2 {[%emt 0:00:31]} Ra2 {[%emt 0:01:50]} 38. Kd3 {[%emt 0:00:37]} g5 {[%emt 0:00:12]} 39. f3 {[%emt 0:00:27]} Kg7 {[%emt 0:01:12]} 40. Rb7 {[%emt 0:00:21]} (40. Rd8 $17 {is a better defense.}) 40... Kg6 {[%emt 0:03:13]} (40... Kf6 $19 41. Rb8 Nf4+ 42. Bxf4 gxf4) 41. Rb8 $17 {[%emt 0:00:00]} Kf5 {[%emt 0:00:00]} 42. Rh8 $2 {[%emt 0:00:00][%mdl 8192]} (42. Rf8 $17 {is more resistant.}) 42... Nf4+ $19 {[%emt 0:00:00]} 43. Bxf4 {[%emt 0:00:00]} Kxf4 {[%emt 0:00:00]} 44. Rxh6 {[%emt 0:00:00]} f5 {[%emt 0:00:00]} (44... Rxg2 45. Rf6+ Kg3 46. Rxf7 $11) 45. h4 {[%emt 0:00:59]} Rxg2 {[%emt 0:00:00]} 46. hxg5 {[%emt 0:00:03]} e5 {[%emt 0:00:00]} (46... Kxf3 47. Rxe6 Rxg5 48. Re5 $11) 47. g6 {[%emt 0:00:03]} Kxf3 {[%emt 0:00:00]} 48. Rh3+ {[%emt 0:00:11]} Kf4 {[%emt 0:00:00]} (48... Kf2 $142 49. Rh1 e4+ (49... Rxg6 50. Rh5 $19) 50. Kd4 e3 (50... Rxg6 $2 51. Rh5 $19) 51. Ke5 Rxg6 52. Kxf5 Rg3 53. Rc1 e2 54. Rc2 Re3 (54... Kf1 55. Rc1+ e1=Q 56. Rxe1+ Kxe1 57. Kf4 Rd3 58. Ke5 Kf2 59. Ke4 Rd1 60. Kf5 Kf3 61. Ke5 Rd3 62. Kf5 Re3 63. Kg5 Ke4 64. Kg6 Ke5 65. Kg5 Rg3+ 66. Kh4 Kf4 67. Kh5 Rg4 68. Kh6 Kf5 69. Kh5 Re4 70. Kh6 Re7 71. Kh5 Rh7#) 55. Kf4 Re8 56. Rb2 Kf1 57. Rb1+ e1=Q (57... e1=B 58. Kf3 $15) 58. Rxe1+ Kxe1 59. Kf3 Kd2 60. Kf4 Ke2 61. Kg4 Rf8 62. Kg3 Ke3 63. Kg4 Rf4+ 64. Kh5 Rf5+ 65. Kg6 Kf4 66. Kh6 Rf6+ 67. Kh7 Kg5 68. Kg7 Rf4 69. Kh8 Kh6 70. Kg8 Kg6 71. Kh8 Rf8#) 49. Rh4+ $19 {[%emt 0:00:05]} Kg5 {[%emt 0:00:00]} 50. Rh8 {[%emt 0:00:02]} Kf4 {[%emt 0:00:00]} (50... Kxg6 51. Rg8+ Kf7 52. Rxg2 Kf6 53. Kc4 e4 54. Kd4 Ke7 55. Ke5) (50... Kf6 51. Rf8+ Ke6 (51... Kxg6 52. Rg8+ Kf7 53. Rxg2 Ke7 54. Kc4 Kf7 55. Kd5 Kf6 56. Re2) 52. Re8+ Kd6 53. Ra8 $11) 51. Rh4+ $1 {[%emt 0:00:21]} Kf3 {[%emt 0:00:00]} (51... Kg5 52. Rh8 e4+ (52... Kxg6 53. Rg8+ Kf6 54. Rxg2 Ke7 55. Rg6 Kf7 56. Ra6 Kg7 57. Kc4) (52... Kf6 53. Rf8+ Ke6 54. Re8+ Kd6 55. Ra8 $15) 53. Ke3 Rg3+ (53... Kxg6 54. Rg8+ Kf7 55. Rxg2 Kf6 56. Kf4 Ke6 57. Rg5 Kd5 58. Rxf5+ Kd4 59. Re5) 54. Ke2) (51... Kg3 $19 52. Rb4 Kf3) 52. Rh3+ {[%emt 0:01:02]} Kf2 {[%emt 0:00:00]} 53. Rh5 {[%emt 0:00:05]} Rg3+ {[%emt 0:00:00]} (53... Rxg6 54. Rxf5+ Kg3 55. Rf8 $11) 54. Kd2 {[%emt 0:03:46]} f4 {[%emt 0:00:00]} ({Inferior is} 54... Rxg6 55. Rxf5+ Kg2 56. Rf7 $11) 55. Rxe5 {[%emt 0:00:09]} f3 {[%emt 0:00:00]} 56. Re6 {[%emt 0:00:52]} Kg1 $2 {[%emt 0:00:00][%mdl 8192]} (56... Kf1 $17 57. Ke3 f2+ 58. Ke4 Ke2 59. Kf4+ Kd3 60. Kxg3 (60. Rd6+ $2 Kc3 $19) 60... f1=Q (60... f1=R $2 {perishes.} 61. Kg4 $18)) 57. Rf6 {[%emt 0:00:13] [#]} f2 $1 {[%emt 0:00:00]} 58. Ke2 {[%emt 0:00:24]} Rg2 {[%emt 0:00:00]} 0-1